bitfinex/quotes_SOLUSD_20241029
["timestamp","ask_amount","ask_price","bid_price","bid_amount"]
[1730214951591,7.47304779,180.03,179.98,7.47304779]
[1730214952474,7.47304779,180.02,179.99,5.5558]
[1730214952871,7.47304779,180.01,179.98,5.556]
[1730214953484,7.47304779,180.0,179.98,5.556]
[1730214954096,7.47304779,180.02,179.98,19.4464]
[1730214954401,7.47304779,180.01,179.98,19.4464]
[1730214954586,7.47304779,180.01,179.98,13.8904]
[1730214958579,7.47304779,180.0,179.98,13.8904]
[1730214959480,5.5544,180.04,179.98,13.8904]
[1730214960007,7.47304779,180.02,179.98,13.8904]
[1730214960901,7.47304779,180.03,179.98,21.36344779]
[1730214961105,6.1644357,180.07,179.99,7.47304779]
[1730214961404,6.1644357,180.07,179.98,13.8904]
[1730214961405,7.47304779,180.02,179.98,19.4465]
[1730214962089,7.47304779,180.03,179.98,26.91954779]
[1730214962799,7.47304779,180.03,179.94,27.7862]
[1730214962800,7.47304779,180.03,179.99,7.47304779]
[1730214962979,7.47304779,180.02,179.97,7.47304779]
[1730214963184,6.39239317,180.07,179.98,7.47304779]
[1730214963185,7.47304779,180.03,179.98,7.47304779]
[1730214964101,7.47304779,180.03,179.99,19.4454]
[1730214964306,7.47304779,180.02,179.99,19.4454]
[1730214964511,7.47304779,180.03,179.99,19.4454]
[1730214964687,0.6109357,180.07,179.99,19.4454]
[1730214964688,0.6109357,180.07,180.0,7.47304779]
[1730214964888,7.47304779,180.05,180.0,7.47304779]
[1730214965289,7.47304779,180.04,180.0,7.47304779]
[1730214966204,7.47304779,180.03,179.98,7.47304779]
[1730214966417,7.47304779,180.02,179.97,7.47304779]
[1730214966710,7.47304779,180.01,179.96,7.47304779]
[1730214966903,7.47304779,180.02,179.97,7.47304779]
[1730214967278,23.776884,180.06,179.98,7.47304779]
[1730214967506,7.47304779,180.03,179.99,19.4454]
[1730214968207,7.47304779,180.05,180.0,7.47304779]
[1730214968410,7.47304779,180.05,179.99,26.91844779]
[1730214969302,7.47304779,180.05,179.99,7.47304779]
[1730214969606,7.47304779,180.05,180.0,7.47304779]
[1730214969996,7.47304779,180.06,180.01,7.47304779]
[1730214970592,7.47304779,180.06,180.02,19.4422]
[1730214971694,0.6109357,180.07,180.04,7.47304779]
[1730214973108,0.6109357,180.07,180.05,7.47304779]
[1730214973314,0.6109357,180.07,180.04,7.47304779]
[1730214973794,0.6109357,180.07,180.05,19.439]
[1730214974316,8.08398349,180.07,180.05,19.439]
[1730214974686,0.6109357,180.07,180.05,26.91204779]
[1730214974887,0.6109357,180.07,180.05,19.439]
[1730214975916,0.6109357,180.07,180.06,7.47304779]
[1730214976292,0.6109357,180.07,180.05,19.439]
[1730214976608,0.6109357,180.07,180.06,7.47304779]
[1730214976812,0.6109357,180.07,180.05,19.439]
[1730214977115,0.6109357,180.07,180.05,26.91204779]
[1730214977436,0.6109357,180.07,180.06,7.47304779]
[1730214977797,0.6109357,180.07,180.05,26.91204779]
[1730214978489,0.6109357,180.07,180.06,7.47304779]
[1730214979499,0.6109357,180.07,180.02,21.66533608]
[1730214979723,0.6109357,180.07,180.06,7.47304779]
[1730214980722,0.6109357,180.07,180.05,26.91164779]
[1730214981413,0.6109357,180.07,180.05,26.91174779]
[1730214984401,7.47304779,180.06,180.02,19.4422]
[1730214984714,0.6109357,180.07,180.02,19.4422]
[1730214984715,7.47304779,180.05,180.02,13.8873]
[1730214985595,7.47304779,180.05,180.02,19.4422]
[1730214986021,7.47304779,180.05,179.96,16.2543]
[1730214986022,7.47304779,180.03,179.99,26.91834779]
[1730214986322,7.47304779,180.01,179.99,19.4453]
[1730214987320,7.47304779,180.01,179.99,13.8896]
[1730214987519,7.47304779,180.0,179.96,13.8917]
[1730214987827,7.47304779,180.0,179.86,0.1]
[1730214987828,7.47304779,179.97,179.93,2.22385106]
[1730214988121,7.47304779,179.95,179.93,2.22427493]
[1730214988316,7.47304779,179.95,179.92,27.7888]
[1730214988498,7.47304779,179.95,179.92,30.01307493]
[1730214988828,7.47304779,179.96,179.93,19.4516]
[1730214989620,7.47304779,179.97,179.93,26.92464779]
[1730214989834,7.47304779,179.99,179.94,7.47304779]
[1730214990121,7.47304779,179.98,179.94,7.47304779]
[1730214990496,7.47304779,179.98,179.93,26.92464779]
[1730214990699,7.47304779,179.99,179.95,7.47304779]
[1730214990913,7.47304779,179.99,179.94,7.47304779]
[1730214991122,23.776884,180.01,179.93,13.8942]
[1730214991123,7.47304779,179.97,179.93,13.8942]
[1730214992202,7.47304779,179.97,179.93,21.36724779]
[1730214992903,7.47304779,179.97,179.93,26.92494779]
[1730214993899,15.8772,180.02,179.94,7.47304779]
[1730214994428,7.47304779,179.98,179.94,7.47304779]
[1730214995023,7.47304779,179.98,179.93,54.71344779]
[1730214995605,7.47304779,179.96,179.93,47.2404]
[1730214995918,7.47304779,179.95,179.93,19.4519]
[1730214996420,7.47304779,179.94,179.93,19.4519]
[1730214996825,23.776884,179.99,179.93,19.4519]
[1730214997006,7.47304779,179.95,179.93,19.4519]
[1730214997203,23.776884,179.99,179.93,19.4519]
[1730214997408,23.776884,180.0,179.93,13.8942]
[1730214997609,7.47304779,179.96,179.93,13.8942]
[1730214998240,7.47304779,179.97,179.93,13.8942]
[1730214998435,15.8772,180.02,179.94,7.47304779]
[1730214998745,7.47304779,179.99,179.94,7.47304779]
[1730214998931,7.47304779,179.98,179.93,21.36724779]
[1730214999123,7.47304779,179.97,179.93,21.36724779]
[1730214999323,7.47304779,179.98,179.93,21.36724779]
[1730214999517,7.47304779,179.98,179.93,26.92494779]
[1730214999745,7.47304779,179.98,179.93,29.14919609]
[1730214999939,21.4323,180.02,179.93,29.14919609]
[1730215000146,7.47304779,179.97,179.94,2.22423719]
[1730215000334,7.47304779,179.97,179.93,29.14918498]
[1730215000538,7.47304779,179.98,179.93,29.14918498]
[1730215001419,7.47304779,179.98,179.93,26.92494779]
[1730215001817,7.47304779,179.94,179.93,19.4519]
[1730215002021,37.47304779,179.94,179.93,19.4519]
[1730215002931,37.47304779,179.94,179.9,7.80553972]
[1730215002932,37.47304779,179.94,179.91,5.5583]
[1730215003127,7.47304779,179.92,179.91,5.5583]
[1730215003445,7.47304779,179.92,179.9,25.0358]
[1730215003625,7.47304779,179.91,179.9,25.0358]
[1730215003820,7.47304779,179.92,179.9,25.0358]
[1730215004748,30.0,179.94,179.9,25.0358]
[1730215005044,30.0,179.94,179.9,32.50884779]
[1730215005453,30.0,179.94,179.91,7.47304779]
[1730215005661,30.0,179.94,179.9,32.50884779]
[1730215006436,7.47304779,179.95,179.92,19.453]
[1730215006834,7.47304779,179.94,179.92,19.453]
[1730215007334,7.47304779,179.94,179.92,13.895]
[1730215007536,7.47304779,179.93,179.92,13.895]
[1730215009738,7.47304779,179.93,179.92,19.476]
[1730215010960,23.776884,179.96,179.92,19.476]
[1730215011165,7.47304779,179.93,179.92,25.034]
[1730215012551,7.47304779,179.93,179.9,11.1395]
[1730215012748,7.47304779,179.92,179.9,11.1395]
[1730215012945,7.47304779,179.93,179.9,11.1395]
[1730215013440,7.47304779,179.94,179.9,11.1395]
[1730215013661,7.47304779,179.94,179.9,32.50914779]
[1730215014165,7.47304779,179.94,179.9,25.0361]
[1730215014969,15.7934,179.99,179.93,7.47304779]
[1730215015167,7.47304779,179.96,179.91,13.05404779]
[1730215015757,7.47304779,179.95,179.91,13.05404779]
[1730215015962,7.47304779,179.93,179.91,5.581]
[1730215016168,7.47304779,179.93,179.91,11.139]
[1730215016561,7.47304779,179.93,179.91,25.0348]
[1730215016740,5.557,179.96,179.91,25.0348]
[1730215016946,7.47304779,179.92,179.91,19.4768]
[1730215018365,7.47304779,179.93,179.91,19.4768]
[1730215018959,7.47304779,179.92,179.91,19.4768]
[1730215019572,7.47304779,179.92,179.91,5.581]
[1730215019966,7.47304779,179.93,179.91,5.581]
[1730215020359,7.47304779,179.94,179.91,5.581]
[1730215020782,7.47304779,179.94,179.9,13.05404779]
[1730215021082,7.47304779,179.93,179.9,5.581]
[1730215021260,7.47304779,179.92,179.9,5.581]
[1730215021464,7.47304779,179.91,179.86,5.5598]
[1730215021661,7.47304779,179.9,179.86,5.5598]
[1730215021887,7.47304779,179.9,179.86,13.03284779]
[1730215022064,7.47304779,179.91,179.87,7.47304779]
[1730215022377,29.334084,179.95,179.89,7.47304779]
[1730215022593,7.47304779,179.93,179.89,13.03184779]
[1730215023280,7.47304779,179.93,179.86,13.8996]
[1730215023281,7.47304779,179.91,179.87,7.47304779]
[1730215023484,7.47304779,179.91,179.87,26.93114779]
[1730215023665,7.47304779,179.9,179.87,19.4581]
[1730215024187,7.47304779,179.91,179.87,26.93114779]
[1730215024560,7.47304779,179.88,179.84,27.8015]
[1730215024770,7.47304779,179.89,179.85,7.47304779]
[1730215024982,7.47304779,179.9,179.85,7.47304779]
[1730215025560,31.24993179,179.87,179.8,15.8074]
[1730215025774,7.47304779,179.84,179.79,7.47304779]
[1730215025971,7.47304779,179.82,179.78,16.13130036]
[1730215026179,7.47304779,179.82,179.78,13.9058]
[1730215026380,7.47304779,179.81,179.78,13.9058]
[1730215026571,0.1,179.88,179.78,13.9058]
[1730215026759,7.47304779,179.82,179.78,21.37884779]
[1730215026962,7.47304779,179.83,179.79,7.47304779]
[1730215027188,5.5595,179.87,179.79,7.47304779]
[1730215027189,7.47304779,179.84,179.79,7.47304779]
[1730215027579,7.47304779,179.85,179.8,7.47304779]
[1730215028669,7.47304779,179.85,179.81,5.5614]
[1730215029194,7.47304779,179.84,179.81,5.5614]
[1730215029566,7.47304779,179.84,179.8,19.4653]
[1730215029767,7.47304779,179.84,179.8,26.93834779]
[1730215030095,7.47304779,179.85,179.8,26.93834779]
[1730215030568,7.47304779,179.85,179.73,29.89219116]
[1730215030569,7.47304779,179.81,179.69,15.9828]
[1730215030769,7.47304779,179.77,179.72,7.47304779]
[1730215031090,7.47304779,179.79,179.74,7.47304779]
[1730215031265,6.3158,179.85,179.76,7.47304779]
[1730215031266,6.1158,179.85,179.76,7.47304779]
[1730215031471,7.47304779,179.81,179.76,7.47304779]
[1730215031789,6.2158,179.85,179.7,7.79095873]
[1730215031790,7.47304779,179.8,179.75,7.47304779]
[1730215031967,7.47304779,179.81,179.76,7.47304779]
[1730215032173,7.47304779,179.82,179.77,7.47304779]
[1730215032692,7.47304779,179.83,179.78,7.47304779]
[1730215032906,7.47304779,179.84,179.79,7.47304779]
[1730215033201,7.47304779,179.83,179.78,7.47304779]
[1730215033493,7.47304779,179.82,179.77,7.47304779]
[1730215033874,7.47304779,179.8,179.77,13.9065]
[1730215034069,7.47304779,179.79,179.74,13.03634779]
[1730215034274,7.47304779,179.78,179.74,5.5633]
[1730215034484,23.776884,179.83,179.76,7.47304779]
[1730215034780,7.47304779,179.8,179.75,7.47304779]
[1730215035374,7.47304779,179.8,179.76,5.5629]
[1730215035876,29.337684,179.83,179.76,26.94334779]
[1730215035877,7.47304779,179.81,179.76,26.94334779]
[1730215036077,7.47304779,179.82,179.77,7.47304779]
[1730215036283,7.47304779,179.82,179.78,7.47304779]
[1730215036474,7.47304779,179.83,179.78,7.47304779]
[1730215036671,7.47304779,179.84,179.79,7.47304779]
[1730215036906,5.79387258,179.87,179.83,7.47304779]
[1730215037080,7.47304779,179.89,179.84,7.47304779]
[1730215037274,7.47304779,179.9,179.85,7.47304779]
[1730215037471,7.47304779,179.9,179.86,5.5598]
[1730215037875,7.47304779,179.89,179.86,5.5598]
[1730215038479,7.47304779,179.9,179.86,19.4594]
[1730215038993,7.47304779,179.88,179.83,7.47304779]
[1730215039312,7.47304779,179.84,179.78,26.94114779]
[1730215039499,7.47304779,179.83,179.78,26.94114779]
[1730215039870,7.47304779,179.82,179.78,26.94114779]
[1730215040272,7.47304779,179.83,179.78,26.94114779]
[1730215040473,7.47304779,179.84,179.79,7.47304779]
[1730215040966,7.47304779,179.83,179.78,26.94114779]
[1730215041165,23.776884,179.86,179.78,26.94114779]
[1730215041381,7.47304779,179.84,179.8,7.47304779]
[1730215041595,7.47304779,179.85,179.8,7.47304779]
[1730215041891,7.47304779,179.85,179.78,19.4681]
[1730215041892,7.47304779,179.84,179.79,7.47304779]
[1730215042391,7.47304779,179.84,179.8,19.466]
[1730215042592,7.47304779,179.83,179.8,19.466]
[1730215042797,23.776884,179.87,179.81,7.47304779]
[1730215042991,7.47304779,179.87,179.82,7.47304779]
[1730215043194,11.69601606,179.87,179.83,11.69601606]
[1730215043802,11.69601606,179.88,179.84,11.69601606]
[1730215044483,11.69601606,179.89,179.85,11.69601606]
[1730215044793,11.69601606,179.91,179.86,11.69601606]
[1730215045579,11.69601606,179.9,179.85,11.69601606]
[1730215046484,11.69601606,179.9,179.86,19.4594]
[1730215047207,11.69601606,179.89,179.86,19.4594]
[1730215047415,11.69601606,179.88,179.86,19.4594]
[1730215047707,11.69601606,179.87,179.82,13.9025]
[1730215047918,11.69601606,179.83,179.78,5.5623]
[1730215048208,11.69601606,179.8,179.78,5.5623]
[1730215048503,11.69601606,179.82,179.78,5.5623]
[1730215048716,11.69601606,179.82,179.78,19.4679]
[1730215049203,11.69601606,179.83,179.78,31.16391606]
[1730215049909,11.69601606,179.79,179.71,19.4758]
[1730215050110,11.69601606,179.74,179.69,11.69601606]
[1730215050317,11.69601606,179.75,179.7,11.69601606]
[1730215050682,11.69601606,179.73,179.68,11.69601606]
[1730215050983,11.69601606,179.69,179.66,2.22682298]
[1730215051207,11.69601606,179.73,179.6,6.0228]
[1730215051208,11.69601606,179.67,179.64,2.22682298]
[1730215051391,11.69601606,179.66,179.63,5.5669]
[1730215051590,11.69601606,179.73,179.62,7.79402298]
[1730215051591,11.69601606,179.65,179.62,7.79402298]
[1730215051909,11.69601606,179.65,179.61,13.9189]
[1730215051910,11.69601606,179.65,179.61,19.4865]
[1730215052278,5.5651,179.69,179.61,19.4865]
[1730215052279,11.69601606,179.63,179.61,13.9189]
[1730215053303,11.69601606,179.62,179.58,5.5684]
[1730215053486,11.69601606,179.61,179.57,19.4907]
[1730215054804,11.69601606,179.62,179.57,31.18671606]
[1730215056411,12.1735,179.66,179.57,19.4907]
[1730215056412,11.69601606,179.61,179.57,19.4907]
[1730215056891,11.69601606,179.62,179.57,11.69601606]
[1730215058093,11.69601606,179.65,179.6,11.69601606]
[1730215058411,5.5652,179.69,179.58,17.26451606]
[1730215058412,11.69601606,179.63,179.58,17.26451606]
[1730215059214,11.69601606,179.63,179.58,11.69601606]
[1730215059400,11.69601606,179.62,179.58,13.9213]
[1730215059606,11.69601606,179.6,179.56,11.69601606]
[1730215059816,11.69601606,179.59,179.55,5.5694]
[1730215060127,11.69601606,179.58,179.55,5.5694]
[1730215060411,11.69601606,179.57,179.55,19.493]
[1730215060820,11.69601606,179.57,179.55,13.9236]
[1730215061002,11.69601606,179.56,179.55,13.9236]
[1730215061197,11.69601606,179.56,179.45,0.2]
[1730215061198,11.69601606,179.56,179.45,21.7091]
[1730215061428,11.69601606,179.54,179.49,11.69601606]
[1730215061788,11.69601606,179.55,179.5,11.69601606]
[1730215062017,11.8866,179.6,179.47,2.22927679]
[1730215062018,11.69601606,179.54,179.49,11.69601606]
[1730215062530,11.69601606,179.58,179.53,11.69601606]
[1730215062712,11.69601606,179.59,179.54,11.69601606]
[1730215063038,11.69601606,179.6,179.55,11.69601606]
[1730215063497,11.69601606,179.61,179.56,31.18801606]
[1730215064033,11.69601606,179.62,179.58,11.69601606]
[1730215064316,16.6365,179.66,179.6,11.69601606]
[1730215064496,16.6365,179.66,179.56,19.492]
[1730215064497,11.69601606,179.65,179.61,11.69601606]
[1730215065114,28.33251606,179.66,179.61,11.69601606]
[1730215065415,11.69601606,179.66,179.62,19.4855]
[1730215065634,11.69601606,179.65,179.62,19.4855]
[1730215065927,11.69601606,179.63,179.57,11.69601606]
[1730215066104,11.69601606,179.61,179.56,11.69601606]
[1730215066613,11.69601606,179.62,179.57,11.69601606]
[1730215067114,11.69601606,179.6,179.55,31.18901606]
[1730215067419,11.69601606,179.64,179.55,13.9236]
[1730215067420,11.69601606,179.57,179.55,13.9236]
[1730215067722,11.69601606,179.57,179.52,31.19221606]
[1730215067928,11.69601606,179.58,179.53,11.69601606]
[1730215068626,11.69601606,179.57,179.52,31.19221606]
[1730215069806,11.69601606,179.58,179.53,11.69601606]
[1730215070504,11.69601606,179.59,179.55,11.69601606]
[1730215070698,11.69601606,179.6,179.56,11.69601606]
[1730215070900,11.35833724,179.63,179.56,11.69601606]
[1730215071125,11.69601606,179.61,179.57,11.69601606]
[1730215071514,11.69601606,179.61,179.56,11.69601606]
[1730215071714,11.69601606,179.59,179.55,11.69601606]
[1730215072117,11.69601606,179.61,179.57,11.69601606]
[1730215072421,11.69601606,179.61,179.57,5.5688]
[1730215072725,35.47290006,179.62,179.57,17.26481606]
[1730215073524,35.47290006,179.62,179.57,31.18691606]
[1730215074018,11.69601606,179.61,179.57,31.18691606]
[1730215074226,23.776884,179.62,179.58,11.69601606]
[1730215074433,5.79133724,179.63,179.6,11.69601606]
[1730215074603,5.79133724,179.63,179.61,11.69601606]
[1730215074809,11.69601606,179.66,179.61,11.69601606]
[1730215075404,11.69601606,179.64,179.59,11.69601606]
[1730215075625,11.69601606,179.64,179.59,17.26391606]
[1730215075817,11.69601606,179.61,179.57,13.9221]
[1730215076019,11.69601606,179.61,179.58,5.5685]
[1730215076325,11.69601606,179.59,179.53,13.9245]
[1730215076504,11.69601606,179.57,179.53,13.9245]
[1730215076706,11.69601606,179.56,179.53,13.9245]
[1730215077007,11.69601606,179.57,179.53,13.9245]
[1730215077230,11.69601606,179.58,179.53,25.62051606]
[1730215077428,11.69601606,179.58,179.53,31.19051606]
[1730215078427,18.77564482,179.58,179.53,38.27014482]
[1730215079128,42.55252882,179.58,179.53,38.27014482]
[1730215079342,18.77564482,179.57,179.53,19.4945]
[1730215079702,18.77564482,179.57,179.53,38.27014482]
[1730215079907,42.55252882,179.58,179.53,38.27014482]
[1730215080408,42.55252882,179.58,179.54,18.77564482]
[1730215080618,18.77564482,179.59,179.55,18.77564482]
[1730215081023,18.77564482,179.59,179.54,18.77564482]
[1730215081356,18.77564482,179.61,179.56,24.34474482]
[1730215081514,15.0984,179.65,179.57,18.77564482]
[1730215081515,18.77564482,179.62,179.57,18.77564482]
[1730215082017,18.77564482,179.62,179.56,19.492]
[1730215082018,15.0984,179.65,179.56,19.492]
[1730215082219,18.77564482,179.66,179.61,18.77564482]
[1730215082442,18.77564482,179.67,179.62,18.77564482]
[1730215083146,24.34144482,179.67,179.62,18.77564482]
[1730215083446,20.98922438,179.7,179.65,18.77564482]
[1730215083447,45.2298692,179.7,179.65,18.77564482]
[1730215083946,18.77564482,179.69,179.64,18.77564482]
[1730215084150,5.79082438,179.7,179.66,18.77564482]
[1730215084320,18.77564482,179.68,179.63,18.77564482]
[1730215085029,5.79082438,179.7,179.67,18.77564482]
[1730215085224,18.77564482,179.72,179.67,24.34114482]
[1730215085439,25.34004482,179.73,179.68,18.77564482]
[1730215086639,18.77564482,179.72,179.67,38.25544482]
[1730215087032,18.77564482,179.73,179.69,18.77564482]
[1730215087348,5.7869597,179.77,179.72,18.77564482]
[1730215087557,25.20314482,179.81,179.76,18.77564482]
[1730215087849,18.77564482,179.77,179.69,19.4778]
[1730215088025,12.0889,179.81,179.69,19.4778]
[1730215088944,18.77564482,179.76,179.71,18.77564482]
[1730215089320,18.77564482,179.76,179.71,24.34004482]
[1730215090042,18.77564482,179.73,179.69,32.68844482]
[1730215090215,18.77564482,179.71,179.66,18.77564482]
[1730215090417,18.77564482,179.72,179.68,18.77564482]
[1730215090926,18.77564482,179.74,179.69,18.77564482]
[1730215091126,42.55252882,179.73,179.68,18.77564482]
[1730215091715,18.77564482,179.72,179.67,24.34114482]
[1730215092130,48.11642882,179.73,179.68,18.77564482]
[1730215092645,18.77564482,179.72,179.67,24.34114482]
[1730215092845,48.11642882,179.73,179.68,18.77564482]
[1730215093029,42.55252882,179.73,179.68,18.77564482]
[1730215093225,5.5634,179.75,179.71,18.77564482]
[1730215093542,18.77564482,179.72,179.66,18.77564482]
[1730215093747,18.77564482,179.71,179.66,18.77564482]
[1730215094131,18.77564482,179.71,179.67,18.77564482]
[1730215094653,18.77564482,179.71,179.63,47.3192]
[1730215094654,18.77564482,179.73,179.68,18.77564482]
[1730215095032,18.77564482,179.72,179.67,18.77564482]
[1730215095235,18.77564482,179.71,179.66,18.77564482]
[1730215095844,18.77564482,179.71,179.64,19.4833]
[1730215095845,18.77564482,179.68,179.64,19.4833]
[1730215096150,18.77564482,179.69,179.64,38.25894482]
[1730215097155,18.77564482,179.68,179.64,19.4833]
[1730215097447,18.77564482,179.69,179.65,18.77564482]
[1730215098029,18.77564482,179.71,179.66,18.77564482]
[1730215098553,18.77564482,179.69,179.64,38.25894482]
[1730215100037,18.77564482,179.69,179.65,18.77564482]
[1730215100237,18.77564482,179.69,179.65,24.34194482]
[1730215100434,18.77564482,179.68,179.64,13.9167]
[1730215100952,18.77564482,179.69,179.65,18.77564482]
[1730215102148,42.55252882,179.7,179.65,24.34184482]
[1730215102326,18.77564482,179.7,179.66,18.77564482]
[1730215102528,18.77564482,179.7,179.65,38.25774482]
[1730215102746,18.77564482,179.69,179.65,38.25774482]
[1730215104848,11.72265317,179.67,179.62,31.20805317]
[1730215105058,11.72265317,179.68,179.63,11.72265317]
[1730215105351,11.72265317,179.71,179.66,11.72265317]
[1730215105944,11.72265317,179.69,179.65,11.72265317]
[1730215106156,11.72265317,179.69,179.64,11.72265317]
[1730215106363,11.72265317,179.67,179.63,11.72265317]
[1730215106533,11.72265317,179.67,179.63,17.28955317]
[1730215107159,11.72265317,179.66,179.62,19.4854]
[1730215107459,11.72265317,179.69,179.64,11.72265317]
[1730215108059,17.28715317,179.71,179.66,11.72265317]
[1730215108554,11.72265317,179.71,179.66,17.28845317]
[1730215109536,17.28715317,179.71,179.66,17.28845317]
[1730215110031,11.72265317,179.7,179.66,5.5658]
[1730215110250,11.72265317,179.7,179.65,31.20425317]
[1730215110550,11.72265317,179.69,179.65,19.4816]
[1730215110776,11.72265317,179.7,179.65,31.20425317]
[1730215112260,17.28745317,179.7,179.65,31.20425317]
[1730215112759,11.72265317,179.72,179.67,11.72265317]
[1730215112948,11.72265317,179.74,179.69,11.72265317]
[1730215113148,12.0191,179.76,179.65,47.3134]
[1730215113149,11.72265317,179.75,179.7,11.72265317]
[1730215113759,17.28595317,179.75,179.7,11.72265317]
[1730215114469,11.72265317,179.76,179.71,11.72265317]
[1730215114761,17.28525317,179.77,179.72,11.72265317]
[1730215116680,11.72265317,179.76,179.71,11.72265317]
[1730215117657,11.72265317,179.76,179.71,17.28695317]
[1730215118269,5.7950163,179.8,179.74,11.72265317]
[1730215118568,11.72265317,179.79,179.75,11.72265317]
[1730215119070,11.72265317,179.81,179.76,11.72265317]
[1730215119568,11.72265317,179.8,179.75,11.72265317]
[1730215119772,11.72265317,179.79,179.75,5.5631]
[1730215119977,11.72265317,179.76,179.71,11.72265317]
[1730215120153,11.72265317,179.75,179.7,25.63395317]
[1730215120347,11.72265317,179.74,179.7,13.9113]
[1730215120564,11.72265317,179.73,179.7,13.9113]
[1730215121146,11.72265317,179.74,179.7,13.9113]
[1730215121348,11.72265317,179.77,179.72,11.72265317]
[1730215121548,11.72265317,179.77,179.72,31.19715317]
[1730215122765,5.5623,179.78,179.72,19.4745]
[1730215122766,11.72265317,179.76,179.72,19.4745]
[1730215122966,11.72265317,179.73,179.7,5.5646]
[1730215123679,11.72265317,179.71,179.66,39.55295317]
[1730215123879,11.72265317,179.7,179.67,19.4796]
[1730215124683,11.72265317,179.71,179.67,19.4796]
[1730215124968,11.72265317,179.7,179.67,19.4796]
[1730215125149,5.564,179.73,179.67,19.4796]
[1730215125150,11.72265317,179.69,179.67,19.4796]
[1730215125351,11.72265317,179.68,179.65,5.5662]
[1730215126373,11.72265317,179.68,179.64,19.4831]
[1730215127264,11.72265317,179.65,179.61,13.9189]
[1730215127659,11.72265317,179.66,179.61,25.64155317]
[1730215128278,11.72265317,179.66,179.61,31.20915317]
[1730215129573,5.5656,179.68,179.55,11.92265317]
[1730215129574,11.72265317,179.62,179.55,11.72265317]
[1730215129758,16.0132,179.68,179.55,11.72265317]
[1730215129759,11.72265317,179.6,179.55,11.72265317]
[1730215130151,11.72265317,179.59,179.56,19.492]
[1730215130372,11.72265317,179.59,179.56,13.9229]
[1730215130585,11.72265317,179.57,179.54,5.5694]
[1730215130760,11.72265317,179.57,179.52,11.72265317]
[1730215130761,11.72265317,179.56,179.53,5.57]
[1730215130966,11.72265317,179.54,179.52,13.9252]
[1730215131357,11.72265317,179.54,179.49,11.72265317]
[1730215131561,11.72265317,179.53,179.49,5.5713]
[1730215131861,11.72265317,179.53,179.49,19.4996]
[1730215132195,11.72265317,179.53,179.45,19.5039]
[1730215132390,11.72265317,179.53,179.48,11.72265317]
[1730215132879,11.72265317,179.52,179.47,11.72265317]
[1730215133588,11.72265317,179.52,179.48,19.5007]
[1730215133880,11.72265317,179.56,179.51,11.72265317]
[1730215134078,11.72265317,179.55,179.5,11.72265317]
[1730215134375,11.72265317,179.54,179.49,11.72265317]
[1730215134879,11.72265317,179.54,179.5,19.4985]
[1730215135761,11.72265317,179.55,179.5,31.22115317]
[1730215135956,11.72265317,179.55,179.51,11.72265317]
[1730215136168,11.72265317,179.56,179.51,11.72265317]
[1730215136561,11.72265317,179.57,179.52,11.72265317]
[1730215137072,11.72265317,179.54,179.5,11.72265317]
[1730215137756,11.72265317,179.53,179.48,11.72265317]
[1730215138259,11.72265317,179.54,179.49,11.72265317]
[1730215139376,15.4995,179.6,179.47,13.9299]
[1730215139377,11.72265317,179.55,179.5,17.29365317]
[1730215139581,11.72265317,179.56,179.51,11.72265317]
[1730215139880,11.72265317,179.57,179.52,11.72265317]
[1730215140288,17.50932957,179.6,179.55,11.72265317]
[1730215140578,11.72265317,179.6,179.55,11.72265317]
[1730215140768,11.72265317,179.59,179.54,11.72265317]
[1730215140965,11.72265317,179.58,179.54,11.72265317]
[1730215141170,11.72265317,179.58,179.54,5.5697]
[1730215142177,11.72265317,179.56,179.53,13.9248]
[1730215142480,11.72265317,179.56,179.53,19.4948]
[1730215142881,5.5676,179.61,179.53,19.4948]
[1730215143177,11.72265317,179.59,179.54,11.72265317]
[1730215143355,11.72265317,179.6,179.55,11.72265317]
[1730215143567,11.72265317,179.62,179.57,11.72265317]
[1730215144260,11.72265317,179.61,179.56,11.72265317]
[1730215144473,11.72265317,179.61,179.57,5.5688]
[1730215144662,11.72265317,179.62,179.58,11.72265317]
[1730215144868,11.72265317,179.64,179.59,11.72265317]
[1730215145579,11.72265317,179.65,179.61,11.72265317]
[1730215145776,11.72265317,179.66,179.61,11.72265317]
[1730215146281,11.72265317,179.67,179.62,11.72265317]
[1730215146579,18.7544893,179.67,179.62,18.7544893]
[1730215147583,18.7544893,179.67,179.62,24.3214893]
[1730215148095,24.54734359,179.69,179.64,18.7544893]
[1730215148295,21.9937,179.75,179.62,19.4852]
[1730215148296,18.7544893,179.71,179.66,18.7544893]
[1730215148495,18.7544893,179.69,179.64,18.7544893]
[1730215148696,18.7544893,179.67,179.62,38.2396893]
[1730215148875,18.7544893,179.69,179.64,18.7544893]
[1730215149074,18.7544893,179.68,179.63,18.7544893]